bitfinex/quotes_ETHUSD_20220119
["timestamp","ask_amount","ask_price","bid_price","bid_amount"]
[1642616700197,1.545,3145.8,3144.9,3.2]
[1642616700198,0.00284211,3145.6,3144.9,3.2]
[1642616700644,0.00227369,3145.5,3145.0,0.457]
[1642616700846,0.00227369,3145.5,3145.1,0.79483]
[1642616701044,1.1263,3146.6,3145.2,1.74202571]
[1642616701045,0.00170527,3145.4,3145.2,1.74202571]
[1642616701242,4.2133,3146.6,3145.9,1.13957758]
[1642616701448,7.7974,3146.7,3145.8,0.457]
[1642616701644,0.00625265,3146.5,3145.8,0.457]
[1642616702046,2.63264223,3146.6,3145.4,0.00023061]
[1642616702047,0.00568423,3146.4,3145.4,0.00023061]
[1642616702445,2.78359223,3146.6,3145.4,0.00023061]
[1642616702446,0.00511581,3146.3,3145.4,0.00023061]
[1642616702646,1.26496939,3146.1,3145.4,0.00023061]
[1642616702847,1.56496939,3146.1,3145.4,0.00023061]
[1642616703047,0.00341054,3146.0,3145.4,0.00023061]
[1642616703447,1.09493,3146.1,3145.4,0.00023061]
[1642616703448,0.00284211,3145.9,3145.4,0.00023061]
[1642616703950,0.00227369,3145.8,3145.4,0.00023061]
[1642616704392,0.00170527,3145.7,3145.4,0.00023061]
[1642616704892,0.00113684,3145.6,3145.4,0.00023061]
[1642616705291,0.00397896,3146.1,3145.4,0.00023061]
[1642616705694,0.00341054,3146.0,3145.4,0.00023061]
[1642616705993,0.00284211,3145.9,3145.4,0.00023061]
[1642616706397,0.00227369,3145.8,3145.4,0.00023061]
[1642616706797,0.00170527,3145.7,3145.4,0.00023061]
[1642616707199,0.00113684,3145.6,3145.4,0.00023061]
[1642616707398,0.00113684,3145.6,3145.4,1.71090711]
[1642616707598,0.00397896,3146.1,3145.5,1.7106765]
[1642616707799,0.00397896,3146.1,3145.6,1.7106765]
[1642616708036,1.71394491,3146.5,3145.7,1.7106765]
[1642616708037,0.00341054,3146.0,3145.7,1.7106765]
[1642616708236,0.00341054,3146.0,3145.8,1.7106765]
[1642616708438,0.00284211,3145.9,3145.4,1.61525632]
[1642616708836,0.00227369,3145.8,3145.4,1.61525632]
[1642616709037,0.00227369,3145.8,3145.4,0.00023061]
[1642616709240,0.00170527,3145.7,3145.4,0.00023061]
[1642616709641,0.00113684,3145.6,3145.4,1.61525632]
[1642616710043,0.00511581,3146.3,3145.5,0.457]
[1642616710246,0.00511581,3146.3,3145.5,1.62065579]
[1642616710445,8.864e-05,3146.4,3145.7,5.75]
[1642616710644,4.15174942,3147.3,3145.7,5.75]
[1642616710645,2.55632044,3147.3,3146.1,0.79449]
[1642616710847,6.93812044,3147.6,3146.4,0.79448]
[1642616711146,1.24564414,3146.9,3146.4,1.25148]
[1642616711546,0.00284212,3146.8,3146.4,1.25148]
[1642616711994,0.00227369,3146.7,3146.4,1.25148]
[1642616712394,0.00170527,3146.6,3146.4,1.25148]
[1642616712794,0.00113684,3146.5,3146.4,1.25148]
[1642616713394,0.00113684,3146.5,3146.4,4.30148]
[1642616714801,0.00113684,3146.5,3146.4,1.25148]
[1642616715201,0.00113684,3146.5,3146.4,0.457]
[1642616715402,0.00113684,3146.5,3146.4,3.657]
[1642616715837,0.00113684,3146.5,3146.4,3.2]
[1642616716941,1.28928341,3146.5,3146.4,3.2]
[1642616717140,0.30113684,3146.5,3146.4,3.2]
[1642616717544,0.00113684,3146.5,3146.4,3.2]
[1642616730644,0.00113684,3146.5,3146.4,4.90452141]
[1642616732546,0.97118069,3146.5,3146.4,3.2]
[1642616732947,0.00113684,3146.5,3146.4,3.2]
[1642616733145,2.85113684,3146.5,3146.4,3.2]
[1642616733546,4.82156422,3146.5,3146.4,3.2]
[1642616733747,1.00113684,3146.5,3146.4,4.89926143]
[1642616733947,1.00113684,3146.5,3146.4,3.2]
[1642616734148,0.00113684,3146.5,3146.4,3.2]
[1642616735792,0.15208684,3146.5,3146.4,3.2]
[1642616735993,1.12340818,3146.5,3146.4,3.2]
[1642616736294,3.65152922,3146.5,3146.4,3.2]
[1642616736494,1.12340818,3146.5,3146.4,3.2]
[1642616736793,2.12340818,3146.5,3146.4,3.2]
[1642616736993,1.12340818,3146.5,3146.4,3.2]
[1642616737195,0.30113684,3146.5,3146.4,3.2]
[1642616737396,0.30113684,3146.5,3146.4,4.89846021]
[1642616737397,0.00113684,3146.5,3146.4,4.89846021]
[1642616739542,0.15208684,3146.5,3146.4,4.89846021]
[1642616739742,0.00113684,3146.5,3146.4,4.89846021]
[1642616741546,0.97361073,3146.5,3146.4,4.89846021]
[1642616741795,3.57362081,3146.5,3146.4,3.2]
[1642616741987,8.32457081,3146.5,3146.4,2.34420443]
[1642616742194,5.02457081,3146.5,3146.4,2.34420443]
[1642616742591,4.94566269,3146.5,3146.4,2.34420443]
[1642616743193,2.27247389,3146.5,3146.4,2.34420443]
[1642616743592,2.42342389,3146.5,3146.4,2.34420443]
[1642616743794,2.27409178,3146.5,3146.4,2.34420443]
[1642616743993,2.27409178,3146.5,3146.4,4.04654962]
[1642616744192,2.27409178,3146.5,3146.4,2.34420443]
[1642616744193,2.42504178,3146.5,3146.4,2.34420443]
[1642616744394,2.41705496,3146.5,3146.4,4.04654639]
[1642616744595,4.19253675,3146.5,3146.4,2.34420443]
[1642616744796,5.19253675,3146.5,3146.4,2.34420443]
[1642616745393,2.41705496,3146.5,3146.4,2.34420443]
[1642616745694,3.21202496,3146.5,3146.4,2.34420443]
[1642616745888,3.21202496,3146.5,3145.7,0.416]
[1642616745889,7.05423945,3146.4,3145.7,0.416]
[1642616746089,0.7950387,3146.2,3145.7,0.416]
[1642616746390,1.12504178,3146.1,3145.7,0.416]
[1642616746590,0.97409178,3146.0,3145.7,0.416]
[1642616746787,2.70095,3145.8,3145.7,0.416]
[1642616746989,3.67504178,3145.8,3145.7,0.416]
[1642616747188,4.97504178,3145.8,3145.7,0.41941054]
[1642616747589,4.97504178,3145.8,3145.7,2.121742]
[1642616747988,4.97504178,3145.8,3145.7,0.41941054]
[1642616749799,2.42504178,3145.8,3145.7,2.1201876]
[1642616750200,0.3,3145.8,3145.7,2.1201876]
[1642616750800,0.3,3145.8,3145.7,0.41941054]
[1642616751005,1.18771223,3145.9,3145.7,2.12017585]
[1642616751201,2.18771223,3145.9,3145.8,1.70076531]
[1642616751402,2.16906339,3145.9,3145.8,0.00284212]
[1642616752203,2.32001339,3145.9,3145.8,0.00284212]
[1642616752405,2.62001339,3145.9,3145.8,0.00284212]
[1642616752604,3.32001339,3145.9,3145.8,0.00284212]
[1642616753053,3.62001339,3145.9,3145.8,0.00284212]
[1642616754153,3.32001339,3145.9,3145.8,0.00284212]
[1642616754351,3.62001339,3145.9,3145.8,0.00284212]
[1642616754751,3.32001339,3145.9,3145.8,0.00284212]
[1642616755751,3.32001339,3145.9,3145.8,3.20284212]
[1642616756353,3.62001339,3145.9,3145.8,3.20284212]
[1642616757598,3.32001339,3145.9,3145.8,3.20284212]
[1642616758400,28.06001339,3145.9,3145.8,1.48556674]
[1642616758602,5.75,3145.7,3145.4,0.00023061]
[1642616758803,2.23360116,3145.6,3145.4,0.00023061]
[1642616758999,6.88230116,3145.5,3145.4,0.00023061]
[1642616759399,6.88230116,3145.5,3145.4,0.0025043]
[1642616759599,7.88230116,3145.5,3145.4,0.0025043]
[1642616759801,9.32946651,3145.5,3145.4,0.0025043]
[1642616760399,2.13230116,3145.5,3145.4,0.0025043]
[1642616760646,0.15095,3145.5,3145.4,0.0025043]
[1642616760846,1.15095,3145.5,3145.4,0.0025043]
[1642616761048,0.15095,3145.5,3145.4,0.0025043]
[1642616763853,2.50095,3145.5,3145.4,0.0025043]
[1642616764066,3.50095,3145.5,3145.4,0.0025043]
[1642616764289,1.15095,3145.5,3145.4,0.0025043]
[1642616764691,0.15095,3145.5,3145.4,0.0025043]
[1642616764891,2.45095,3145.5,3145.4,0.0025043]
[1642616766792,2.45095,3145.5,3145.4,3.2025043]
[1642616766793,0.15095,3145.5,3145.4,3.2025043]
[1642616767796,5.80095,3145.5,3145.4,3.2025043]
[1642616768061,7.8121431,3145.5,3145.4,3.2025043]
[1642616768252,7.8121431,3145.5,3145.4,0.0025043]
[1642616768754,8.1121431,3145.5,3145.4,0.0025043]
[1642616769756,2.1621431,3145.5,3145.4,0.0025043]
[1642616769956,2.4621431,3145.5,3145.4,0.0025043]
[1642616770156,1.4621431,3145.5,3145.4,0.0025043]
[1642616770658,6.9121431,3145.5,3145.4,0.0025043]
[1642616771057,7.9121431,3145.5,3145.4,0.0025043]
[1642616771794,26.6021431,3145.5,3145.4,0.0025043]
[1642616773193,7.9121431,3145.5,3145.4,0.0025043]
[1642616773795,7.6121431,3145.5,3145.4,0.0025043]
[1642616773994,26.6021431,3145.5,3145.4,0.0025043]
[1642616775002,1.8906544,3145.3,3144.8,0.01294953]
[1642616775202,18.84095,3145.2,3144.8,0.01294953]
[1642616775401,2.3112659,3145.1,3144.9,0.00284212]
[1642616775642,3.6112659,3145.1,3144.9,0.00284212]
[1642616776242,3.25092294,3145.1,3144.9,0.00284212]
[1642616776442,0.15095,3145.0,3144.9,0.00284212]
[1642616776642,1.15095,3145.0,3144.9,0.00284212]
[1642616777542,1.15095,3145.0,3144.9,2.50284212]
[1642616777743,3.80095,3145.0,3144.9,2.50284212]
[1642616779996,22.49095,3145.0,3144.9,2.50284212]
[1642616780496,1.15095,3145.0,3144.9,2.50284212]
[1642616781597,5.40095,3145.0,3144.9,2.50284212]
[1642616781797,5.70095,3145.0,3144.9,2.50284212]
[1642616781999,5.70095,3145.0,3144.9,2.17545933]
[1642616782000,26.92396773,3145.0,3144.9,2.17545933]
[1642616782206,24.44,3144.9,3143.5,3.8355]
[1642616782402,24.44,3144.9,3143.6,1.62728818]
[1642616782403,3.18225,3144.6,3143.6,1.62728818]
[1642616782702,2.32641773,3144.5,3143.6,1.63467769]
[1642616782899,1.35957149,3144.2,3143.7,1.62728818]
[1642616783143,1.65957149,3144.2,3143.7,1.62728818]
[1642616783347,1.95957149,3144.2,3143.8,0.00625266]
[1642616783543,0.15095,3144.1,3143.8,0.00625266]
[1642616783743,0.15095,3144.1,3143.9,1.62619078]
[1642616784144,0.15095,3144.1,3144.0,0.00511581]
[1642616784546,4.40095,3144.1,3144.0,0.00511581]
[1642616784750,0.15095,3144.1,3144.0,0.00511581]
[1642616784949,1.15095,3144.1,3144.0,0.00511581]
[1642616785147,0.15095,3144.1,3144.0,0.00511581]
[1642616785350,0.15095,3144.1,3143.7,0.00682108]
[1642616785547,0.15095,3144.1,3143.8,1.62340091]
[1642616785949,0.15095,3144.1,3143.9,0.00568424]
[1642616786994,0.15095,3144.1,3144.0,1.62667468]
[1642616787394,0.15095,3144.1,3144.0,1.63179049]
[1642616787892,1.15095,3144.4,3144.0,1.63179049]
[1642616788092,1.15095,3144.4,3144.1,1.62667468]
[1642616788294,1.15095,3144.4,3144.1,1.63122207]
[1642616788496,1.15095,3144.4,3144.2,1.63065364]
[1642616788694,0.15095,3144.4,3144.3,1.62667468]
[1642616788894,0.15095,3144.4,3144.3,1.63008522]
[1642616789193,0.15095,3144.4,3144.3,0.00341054]
[1642616789399,1.0,3145.0,3144.3,0.00341054]
[1642616789400,1.0,3144.9,3144.3,0.00341054]
[1642616789600,0.15095,3145.0,3144.2,2.5291335]
[1642616789798,0.15095,3145.0,3144.3,1.61315959]
[1642616790003,0.15095,3145.0,3144.4,1.61315959]
[1642616790297,0.15095,3145.0,3144.5,2.97859239]
[1642616790557,0.15095,3145.0,3144.6,1.61315959]
[1642616790739,0.15095,3145.0,3144.6,1.61486486]
[1642616791040,0.15095,3145.0,3144.7,0.00113685]
[1642616791240,1.0,3145.1,3144.7,0.00113685]
[1642616791441,1.05487707,3145.0,3144.2,1.61450553]
[1642616791639,1.05487707,3145.0,3144.3,1.61450553]
[1642616791841,1.05487707,3145.0,3144.4,1.61450553]
[1642616792041,1.15095,3145.1,3144.5,1.61450553]
[1642616792241,1.05502119,3145.0,3144.5,1.61677922]
[1642616792443,1.05502119,3145.0,3144.6,0.00170527]
[1642616792648,0.15095,3144.9,3144.6,0.00170527]
[1642616792844,0.15095,3144.9,3144.2,1.6109338]
[1642616792845,0.15095,3144.9,3144.2,1.61491276]
[1642616793044,0.15095,3144.9,3144.3,1.61434434]
[1642616793243,0.15095,3144.9,3144.4,1.6109338]
[1642616793443,0.15095,3144.9,3144.5,1.6109338]
[1642616793643,0.15095,3144.9,3144.5,0.00227369]
[1642616793845,0.15095,3144.9,3144.6,0.00170527]
[1642616794044,0.15095,3144.7,3143.9,2.87932465]
[1642616794301,0.15095,3144.7,3144.0,1.61628744]
[1642616794507,0.15095,3144.7,3144.1,1.61117163]
[1642616794707,0.15095,3144.7,3144.1,1.61571902]
[1642616794906,0.15095,3144.7,3144.2,1.61515059]
[1642616795109,0.15095,3144.7,3144.3,1.61117163]
[1642616795312,0.15095,3144.7,3144.3,1.61458217]
[1642616795512,0.15095,3145.0,3144.4,4.11401375]
[1642616795709,0.15095,3145.0,3144.5,1.61117163]
[1642616795710,1.05578828,3144.9,3144.5,1.61117163]
[1642616795910,0.15095,3145.0,3144.5,1.61344532]
[1642616796109,0.15095,3145.0,3144.6,0.00170527]
[1642616796311,0.15095,3145.0,3144.6,1.6128769]
[1642616796509,0.15095,3145.0,3144.6,0.00170527]
[1642616796710,0.15095,3145.0,3144.7,0.00113685]
[1642616796910,1.05511593,3144.9,3144.2,1.6157534]
[1642616797109,1.05511593,3144.9,3144.3,1.61518498]
[1642616797309,1.05511593,3144.9,3144.4,1.61177444]
[1642616797509,1.05511593,3144.9,3144.4,0.00284212]
[1642616797710,1.05511593,3144.9,3144.5,0.00227369]
[1642616797914,1.05511593,3144.9,3144.4,1.61177444]
[1642616797915,0.15095,3144.8,3144.4,1.61177444]
[1642616798146,0.15095,3144.8,3144.5,1.61177444]
[1642616798347,0.15095,3144.8,3144.6,1.61177444]
[1642616798545,0.15095,3144.8,3144.6,0.00170527]
[1642616798844,0.15095,3144.8,3144.2,1.61619721]
[1642616799046,0.15095,3144.8,3144.3,1.61221825]
[1642616799247,0.15095,3144.8,3144.3,1.61562879]
[1642616799445,0.15095,3144.8,3144.4,1.61506037]
[1642616799646,0.15095,3144.8,3144.5,1.61221825]
[1642616799848,0.15095,3144.8,3144.5,0.00227369]
[1642616800048,1.05627924,3144.7,3144.6,0.00170527]
[1642616800246,1.05627924,3144.7,3143.9,1.61806002]
[1642616800450,1.05627924,3144.7,3143.8,1.1672]
[1642616800451,1.05627924,3144.7,3144.0,1.61749159]
[1642616800647,1.05627924,3144.7,3144.1,1.61237578]
[1642616800947,1.05627924,3144.7,3144.1,1.61692317]
[1642616801150,0.15095,3144.8,3144.2,1.61635474]
[1642616801347,0.15095,3144.8,3144.3,1.61237578]
[1642616801646,0.15095,3144.8,3144.4,0.00284212]
[1642616802290,1.06151891,3144.7,3144.4,0.00284212]
[1642616802490,1.06151891,3144.7,3144.4,1.6152179]
[1642616802691,1.3609008,3144.5,3144.4,0.00284212]
[1642616802895,1.3609008,3144.5,3143.6,1.55455975]
[1642616803694,1.3609008,3144.5,3143.6,3.16958546]
[1642616804095,1.0,3144.7,3143.6,3.16958546]
[1642616804295,0.15095,3144.8,3143.6,3.16958546]
[1642616804499,1.06231555,3144.7,3143.6,3.16958546]
[1642616804900,1.06231555,3144.7,3143.6,5.67119097]
[1642616805100,0.15095,3144.8,3143.7,1.61502571]
[1642616805556,0.15095,3144.8,3144.1,1.2330524]
[1642616805750,2.93825369,3145.5,3144.2,2.48531176]
[1642616806046,0.04772631,3145.8,3144.4,0.01241992]
[1642616806047,0.00511581,3144.7,3144.4,0.01241992]
[1642616806251,0.00909478,3145.4,3144.4,0.01241992]
[1642616806446,0.00454739,3144.6,3144.4,0.01241992]
[1642616806648,0.00852635,3145.3,3144.4,0.01241992]
[1642616806947,0.00795793,3145.2,3144.4,0.01241992]
[1642616807148,1.5058509,3145.2,3144.4,0.01241992]
[1642616807348,0.00738951,3145.1,3144.4,0.01241992]
[1642616807548,0.00738951,3145.1,3144.5,0.3]
[1642616807748,0.00682108,3145.0,3144.5,0.3]
[1642616808147,0.00625266,3144.9,3144.5,0.3]
[1642616808549,0.00568424,3144.8,3144.5,0.3]
[1642616808949,0.00738951,3145.1,3144.5,0.3]
[1642616809396,0.00682108,3145.0,3144.5,0.3]
[1642616809596,0.00682108,3145.0,3144.4,0.01241992]
[1642616809797,0.00625266,3144.9,3144.4,0.01241992]
[1642616810195,0.00568424,3144.8,3144.3,5.81595]
[1642616810596,0.00738951,3145.1,3144.3,5.81595]
[1642616810999,0.00682108,3145.0,3144.3,5.81595]
[1642616811395,0.00625266,3144.9,3144.3,6.11595]
[1642616811595,0.00625266,3144.9,3144.4,2.52423747]
[1642616811796,0.00568424,3144.8,3144.4,2.52423747]
[1642616811996,0.00568424,3144.8,3144.3,5.51595]
[1642616812297,0.00795793,3145.2,3144.3,3.926]
[1642616812496,1.10602281,3145.1,3144.3,3.926]
[1642616812696,1.11341232,3145.1,3144.3,3.926]
[1642616812896,2.52918516,3145.0,3144.3,4.226]
[1642616813148,1.42528466,3145.0,3144.3,4.226]
[1642616813349,0.00625266,3144.9,3144.3,4.226]
[1642616813847,0.00568424,3144.8,3144.3,4.226]
[1642616814350,0.00625266,3144.9,3144.3,4.226]
[1642616814850,0.00568424,3144.8,3144.3,4.226]
[1642616815052,0.00568424,3144.8,3144.3,3.926]
[1642616815251,1.56941358,3145.0,3144.3,3.926]
[1642616815252,0.00625266,3144.9,3144.3,3.926]
[1642616815458,1.10438845,3144.8,3144.3,3.926]
[1642616815651,1.10438845,3144.8,3144.0,0.127262]
[1642616815652,1.11007269,3144.8,3144.0,0.127262]
[1642616815855,1.10438845,3144.7,3144.0,0.127262]
[1642616816354,0.00454739,3144.6,3144.0,0.127262]
[1642616816792,1.19692885,3144.3,3144.0,0.127262]
[1642616817195,0.0022737,3144.2,3144.0,0.127262]
[1642616817596,0.00170527,3144.1,3144.0,0.127262]
[1642616818622,4.60042438,3145.2,3144.0,5.877262]
[1642616818623,0.79532,3145.2,3144.0,5.877262]
[1642616818807,1.0,3145.3,3144.7,0.01233391]
[1642616819003,1.0,3145.3,3144.8,2.5]
[1642616819203,2.59407281,3146.2,3144.9,0.457]
[1642616819403,1.0,3146.2,3145.0,2.52643208]
[1642616819604,1.0,3146.2,3145.0,4.07215344]
[1642616819802,0.01080005,3146.0,3145.8,1.52177417]
[1642616820001,0.01080005,3146.0,3145.8,0.9794]
[1642616820204,1.59407281,3146.5,3145.8,0.9794]
[1642616820205,0.01023162,3145.9,3145.8,0.9794]
[1642616820674,0.01307374,3145.9,3145.8,0.9794]
[1642616821464,0.01307374,3145.9,3145.3,3.6806]
[1642616821865,0.01307374,3145.9,3144.7,0.01233391]
[1642616821866,0.0877232,3145.8,3144.3,4.64138136]
[1642616822068,0.0877232,3145.8,3144.4,7.60673208]
[1642616822363,0.0877232,3145.8,3144.4,9.19671208]
[1642616822364,0.00909478,3145.7,3144.4,9.19671208]
[1642616822567,0.00909478,3145.7,3144.7,1.49921088]
[1642616822568,0.07807,3145.6,3144.7,1.49921088]
[1642616822767,1.37714919,3145.6,3144.7,1.49921088]
[1642616822968,0.00795793,3145.5,3144.7,1.49921088]
[1642616823367,0.00738951,3145.4,3144.5,0.3]
[1642616823567,0.00738951,3145.4,3144.7,0.79501]
[1642616823772,0.00682108,3145.3,3144.7,0.79501]
[1642616824168,0.00625266,3145.2,3144.7,0.79501]
[1642616824600,0.00568424,3145.1,3144.7,0.79501]
[1642616825000,0.00511581,3145.0,3144.7,0.79501]
[1642616825502,0.00454739,3144.9,3144.7,0.79501]
[1642616826001,0.00397897,3144.8,3144.7,0.79501]
[1642616826410,0.00795793,3144.8,3144.7,0.79501]
[1642616826699,0.00795793,3144.8,3144.7,1.09501]
[1642616828245,0.00795793,3144.8,3144.7,0.3]
[1642616828446,0.00795793,3144.8,3144.5,1.66513828]
[1642616828851,0.00341054,3144.7,3144.5,1.66513828]
[1642616829350,0.00284212,3144.6,3144.5,1.66513828]
[1642616830151,0.00284212,3144.6,3144.5,6.06513828]
[1642616830550,0.00284212,3144.6,3144.5,0.3]
[1642616831053,0.00284212,3144.6,3144.4,5.0803]
[1642616831453,0.0022737,3144.5,3144.4,5.0803]
[1642616831897,0.0022737,3144.5,3144.4,3.9372]
[1642616831898,0.00795793,3144.5,3144.4,3.9372]
[1642616832096,0.00795793,3144.5,3144.0,1.61750656]
[1642616832398,1.19297218,3144.9,3143.9,4.00301876]
[1642616832399,0.00170527,3144.4,3143.9,4.00301876]
[1642616832595,0.00170527,3144.4,3144.0,1.61750656]
[1642616832796,1.19297218,3144.9,3144.0,1.61750656]
[1642616832797,0.00113685,3144.3,3144.0,1.61750656]
[1642616832996,0.00113685,3144.3,3144.1,1.61750656]
[1642616833198,0.00397897,3144.8,3144.2,0.7951779]
[1642616833397,0.00397897,3144.8,3144.2,3.20783446]
[1642616833598,0.00341054,3144.7,3144.3,0.6]
[1642616833799,0.00341054,3144.7,3144.2,3.20783446]
[1642616834002,0.00284212,3144.6,3144.3,0.6]
[1642616834407,0.0022737,3144.5,3144.3,0.6]
[1642616834803,0.00170527,3144.4,3144.3,0.6]
[1642616835304,0.00170527,3144.4,3144.2,3.1805342]
[1642616835745,0.00113685,3144.3,3144.2,3.1805342]
[1642616835945,0.00113685,3144.3,3144.2,2.6853563]
[1642616836144,0.00454739,3144.3,3144.2,1.8902063]
[1642616836546,0.00454739,3144.3,3144.2,2.1902063]
[1642616837744,0.00454739,3144.3,3144.2,1.8902063]
[1642616838345,0.00454739,3144.3,3144.2,9.18711536]
[1642616838544,0.00454739,3144.3,3144.2,8.55771286]
[1642616838947,0.00454739,3144.3,3144.2,12.66382454]
[1642616839149,0.00454739,3144.3,3144.2,11.04631798]
[1642616839409,0.00454739,3144.3,3144.2,7.86369419]
[1642616839806,0.00454739,3144.3,3144.2,5.03286729]
[1642616840007,0.00454739,3144.3,3144.2,7.55907807]
[1642616840207,0.00454739,3144.3,3144.2,7.55691242]
[1642616840409,0.00454739,3144.3,3144.2,5.93953621]
[1642616840607,0.07806,3145.3,3144.3,5.75]
[1642616840807,1.15441463,3145.2,3144.5,0.79503]
[1642616841006,0.00170527,3145.2,3144.6,1.52528478]
[1642616841207,0.00170527,3145.2,3144.6,1.52699005]
[1642616841409,0.07973527,3145.2,3144.7,0.00113685]
[1642616841607,0.07973527,3145.2,3144.7,1.52642163]
[1642616842611,1.15480438,3145.1,3144.7,1.52642163]
[1642616843049,1.15480438,3145.1,3144.7,2.62137163]
[1642616843252,0.07973527,3145.2,3144.8,1.52528478]
[1642616843450,0.00170527,3145.2,3144.9,0.7950194]
[1642616843649,0.00170527,3145.2,3145.0,1.52528478]
[1642616844456,1.15505252,3145.2,3145.0,1.52528478]
[1642616845256,1.23311252,3145.2,3145.1,1.52528478]
[1642616845456,1.23311252,3145.2,3144.7,0.00113685]
[1642616845657,0.00170527,3145.2,3144.7,0.00113685]
[1642616845855,0.00113685,3145.1,3144.7,0.00113685]
[1642616846257,1.15655747,3145.2,3144.7,1.09618685]
[1642616846456,1.15655747,3145.1,3144.8,1.52528478]
[1642616846658,1.15655747,3145.0,3144.9,1.52528478]
[1642616846940,0.00113685,3145.1,3144.9,1.52528478]
[1642616847129,0.00113685,3145.1,3145.0,1.52528478]
[1642616847528,0.07913685,3145.1,3145.0,1.52528478]
[1642616847929,3.73569432,3145.1,3144.7,0.00113685]
[1642616848230,1.15655747,3145.0,3144.5,1.52755847]
[1642616848430,1.15655747,3145.0,3144.6,1.52528478]
[1642616848632,1.15655747,3145.0,3144.7,1.52528478]
[1642616848832,1.15655747,3145.0,3144.8,1.52528478]
[1642616848833,2.15655747,3145.0,3144.8,1.52528478]
[1642616849033,2.15655747,3145.0,3144.7,0.00113685]
[1642616849034,5.68452747,3144.9,3144.7,0.00113685]
[1642616849234,4.25655747,3144.8,3144.7,0.00113685]
[1642616849434,4.25655747,3144.8,3144.4,0.00284212]
[1642616849435,5.25655747,3144.8,3144.4,0.00284212]
[1642616849633,1.15655747,3144.7,3144.3,0.00341054]
[1642616850034,1.15655747,3144.7,3144.1,0.00454739]
[1642616850234,2.68176793,3144.7,3144.1,0.00454739]
[1642616850433,1.15655747,3144.6,3144.1,0.00454739]
[1642616850644,1.52521046,3144.7,3144.1,0.00454739]
[1642616850844,1.0,3144.6,3144.1,0.00454739]
[1642616851045,1.52521046,3144.7,3144.1,0.00454739]
[1642616853246,1.52521046,3144.7,3144.2,0.7951738]
[1642616853648,1.52521046,3144.7,3144.3,0.00341054]
[1642616854050,1.52521046,3144.7,3144.1,0.00454739]
[1642616854522,1.52521046,3144.7,3144.2,0.7952026]
[1642616854723,1.52521046,3144.7,3144.1,0.00454739]
[1642616854923,1.52521046,3144.7,3144.3,0.00341054]
[1642616855126,1.15789478,3144.6,3144.1,0.00454739]
[1642616855522,2.15789478,3144.6,3144.1,0.00454739]
[1642616855723,1.52521046,3144.7,3144.1,0.00454739]
[1642616855923,1.0,3144.9,3144.1,0.00454739]
[1642616856123,1.15797713,3144.8,3144.2,1.5903515]
[1642616856325,1.15797713,3144.8,3144.2,2.3853481]
[1642616856523,1.15797713,3144.8,3144.3,0.00341054]
[1642616857623,1.23603713,3144.8,3144.3,0.00341054]
[1642616857828,1.15797713,3144.7,3144.3,0.00341054]
[1642616858064,0.07806,3144.6,3144.3,0.00341054]
[1642616858263,0.07806,3144.6,3143.9,0.00568424]
[1642616858264,1.15797713,3144.5,3143.9,0.00568424]
[1642616858464,0.07806,3144.4,3143.7,0.00682108]
[1642616858664,1.15797713,3144.3,3143.6,0.00738951]
[1642616858864,0.07806,3144.2,3143.6,0.00738951]
[1642616859067,1.49425844,3143.9,3143.4,0.00852635]
[1642616859867,1.49425844,3143.9,3143.3,0.00909478]
[1642616861068,1.49425844,3143.9,3143.0,3.65598796]
[1642616861273,0.00284212,3143.8,3143.0,2.3862781]
[1642616861471,0.00284212,3143.8,3143.1,0.00113684]
[1642616861670,0.00284212,3143.8,3143.2,0.79541]
[1642616861930,0.0022737,3143.7,3143.1,0.00113684]
[1642616862230,0.00284212,3143.8,3143.0,0.00170527]
[1642616862431,0.00170527,3143.6,3143.0,0.00170527]
[1642616862631,0.0803037,3143.7,3142.9,0.00227369]
[1642616862834,0.00113685,3143.5,3142.8,0.00284211]
[1642616863036,0.07803,3143.7,3142.8,0.00284211]
[1642616863037,0.00170527,3143.6,3142.8,0.00284211]
[1642616863435,0.00113685,3143.5,3142.8,0.00284211]
[1642616863634,0.00113685,3143.5,3143.0,1.49728649]
[1642616863840,0.0022737,3143.7,3143.0,1.49728649]
[1642616864234,0.00170527,3143.6,3143.1,1.39942978]
[1642616864635,0.00113685,3143.5,3143.1,1.39942978]
[1642616865038,0.00341054,3143.9,3143.1,1.39942978]
[1642616865569,0.00284212,3143.8,3143.1,1.69942978]
[1642616865753,0.00284212,3143.8,3143.2,1.39942978]
[1642616865953,0.0022737,3143.7,3143.2,1.39942978]
[1642616866355,0.00170527,3143.6,3143.2,1.39942978]
[1642616866754,1.0,3144.0,3143.3,0.795416]
[1642616866755,0.00113685,3143.5,3143.3,0.795416]
[1642616866957,0.00113685,3143.5,3143.4,1.39942978]
[1642616867156,0.00341054,3143.9,3143.4,1.39942978]
[1642616867355,0.00113685,3143.5,3143.4,1.39942978]
[1642616867559,0.00284212,3143.8,3143.4,1.39942978]
[1642616867755,0.07807,3143.9,3143.0,2.29275649]
[1642616867756,0.07807,3143.9,3143.5,1.39942978]
[1642616867955,0.07807,3143.9,3143.6,1.39942978]
[1642616868160,0.00284212,3143.8,3143.7,1.39942978]
[1642616869301,0.00284212,3143.8,3143.7,1.33628107]
[1642616869906,0.00284212,3143.8,3143.5,1.33628107]
[1642616870307,0.07811,3144.1,3143.5,1.33628107]
[1642616870308,0.0022737,3143.7,3143.5,1.33628107]
[1642616870710,0.00170527,3143.6,3143.5,1.33628107]
[1642616872509,0.00170527,3143.6,3143.3,1.33628107]
[1642616872911,0.00113685,3143.5,3143.3,2.43161047]
[1642616873156,0.00113685,3143.5,3143.4,5.98628107]
[1642616873359,0.00454739,3144.1,3143.4,5.98628107]
[1642616873558,1.0,3144.2,3143.5,2.13160107]
[1642616873754,1.0,3144.2,3143.6,1.33628107]
[1642616873956,0.00454739,3144.1,3143.7,1.33628107]
[1642616874156,0.00454739,3144.1,3143.8,1.33628107]
[1642616874360,0.07799,3144.4,3143.9,1.33628107]
[1642616874361,0.00397897,3144.0,3143.9,1.33628107]
[1642616886512,3.00397897,3144.0,3143.9,1.33628107]
[1642616886907,4.00397897,3144.0,3143.9,1.33628107]
[1642616887908,5.49370891,3144.0,3143.9,1.33628107]
[1642616888953,6.8306735,3144.0,3143.9,1.33628107]
[1642616890659,6.9087335,3144.0,3142.8,5.418245]
[1642616890860,1.25482844,3143.4,3142.9,1.31673619]
[1642616891057,1.25482844,3143.4,3142.9,1.31900988]
[1642616891257,1.25482844,3143.4,3143.0,0.00170527]
[1642616891661,8.63358054,3143.9,3143.0,0.00170527]
[1642616891904,8.63358054,3143.9,3142.9,0.00227369]
[1642616892101,0.00284212,3143.8,3142.8,0.00284211]